fUSD/lending_fUSD_20250911
["ID","MTS","AMOUNT","RATE_DAILY","PERIOD"]
[384951315,1757633469443,-151.0,0.00027397,7]
[384951316,1757633469453,-8253.190195,0.00027397,7]
[384951317,1757633469462,-151.0,0.00027397,7]
[384951318,1757633469471,-8253.190195,0.00027397,7]
[384951319,1757633469480,-151.0,0.00027397,7]
[384951320,1757633469489,-2522.98,0.00027397,7]
[384951321,1757633469499,-8253.190195,0.00027397,7]
[384951322,1757633469508,-151.0,0.00027397,7]
[384951323,1757633469517,-8915.5,0.00027397,7]
[384951324,1757633469526,-400.0,0.00027397,7]
[384951325,1757633469536,-2293.05,0.00027397,7]
[384951326,1757633469545,-8253.190195,0.00027397,7]
[384951327,1757633469554,-1506.19,0.00027397,7]
[384951328,1757633469563,-8253.190195,0.00027397,7]
[384951329,1757633469572,-646.55,0.00027397,7]
[384951330,1757633469581,-8253.190195,0.00027397,7]
[384951331,1757633469590,-8253.190195,0.00027397,7]
[384951332,1757633469599,-8253.190195,0.00027397,7]
[384951333,1757633469609,-400.0,0.00027397,7]
[384951334,1757633469619,-8253.190195,0.00027397,7]
[384951335,1757633469628,-1115.97,0.00027397,7]
[384951336,1757633469637,-8253.190195,0.00027397,7]
[384951337,1757633469646,-8253.190195,0.00027397,7]
[384951338,1757633469655,-400.0,0.00027397,7]
[384951339,1757633469664,-400.0,0.00027397,7]
[384951340,1757633469674,-8253.190195,0.00027397,7]
[384951341,1757633469683,-8253.190195,0.00027397,7]
[384951342,1757633469692,-8253.190196,0.00027397,7]
[384951343,1757633469701,-1228.55,0.00027397,7]
[384951344,1757633469711,-400.0,0.00027397,7]
[384951345,1757633469720,-400.0,0.00027397,7]
[384951346,1757633469729,-822.61,0.00027397,7]
[384951347,1757633469738,-2894.96,0.00027397,7]
[384951348,1757633469747,-400.0,0.00027397,7]
[384951349,1757633469757,-400.0,0.00027397,7]
[384951350,1757633469766,-516.83,0.00027397,7]
[384951351,1757633469775,-400.0,0.00027397,7]
[384951352,1757633469784,-1099.92,0.00027397,7]
[384951353,1757633469793,-279.204598,0.00027397,7]
[384951354,1757633469803,-279.204598,0.00027397,7]
[384951355,1757633469813,-279.204598,0.00027397,7]
[384951356,1757633469822,-279.204598,0.00027397,7]
[384951357,1757633469831,-279.204598,0.00027397,7]
[384951358,1757633469841,-400.0,0.00027397,7]
[384951359,1757633469851,-1192.58,0.00027397,7]
[384951360,1757633469860,-279.204598,0.00027397,7]
[384951361,1757633469869,-1361.61,0.00027397,7]
[384951362,1757633469878,-1669.73,0.00027397,7]
[384951363,1757633469887,-1391.18,0.00027397,7]
[384951364,1757633469896,-279.204598,0.00027397,7]
[384951365,1757633469905,-400.0,0.00027397,7]
[384951366,1757633469916,-279.204598,0.00027397,7]
[384951367,1757633469926,-279.204598,0.00027397,7]
[384951368,1757633469935,-279.204598,0.00027397,7]
[384951369,1757633469945,-487.65,0.00027397,7]
[384951370,1757633469954,-279.204598,0.00027397,7]
[384951371,1757633469963,-400.0,0.00027397,7]
[384951372,1757633469972,-1005.66,0.00027397,7]
[384951373,1757633469981,-279.204598,0.00027397,7]
[384951374,1757633469990,-279.204598,0.00027397,7]
[384951375,1757633469999,-279.204598,0.00027397,7]
[384951376,1757633470009,-279.204598,0.00027397,7]
[384951377,1757633470018,-279.204598,0.00027397,7]
[384951378,1757633470027,-279.204598,0.00027397,7]
[384951379,1757633470036,-279.204598,0.00027397,7]
[384951380,1757633470045,-279.204598,0.00027397,7]
[384951381,1757633470054,-400.0,0.00027397,7]
[384951382,1757633470063,-279.204596,0.00027397,7]
[384951383,1757633470073,-400.0,0.00027397,7]
[384951384,1757633470082,-500.0,0.00027397,7]
[384951385,1757633470090,-500.0,0.00027397,7]
[384951386,1757633470100,-500.0,0.00027397,7]
[384951387,1757633470109,-500.0,0.00027397,7]
[384951388,1757633470120,-788.43,0.00027397,7]
[384951389,1757633470130,-400.0,0.00027397,7]
[384951390,1757633470141,-4228.2,0.00027397,7]
[384951391,1757633470150,-1287.44,0.00027397,7]
[384951392,1757633470159,-502.47062639,0.00027397,7]
[384951393,1757633470169,-581.85,0.00027397,7]
[384951394,1757633470178,-400.0,0.00027397,7]
[384951395,1757633470187,-400.0,0.00027397,7]
[384951396,1757633470196,-632.0,0.00027397,7]
[384951397,1757633470205,-420.78590602,0.00027397,7]
[384951398,1757633470214,-400.0,0.00027397,7]
[384951399,1757633470223,-400.0,0.00027397,7]
[384951400,1757633470233,-492.57,0.00027397,7]
[384951401,1757633470242,-400.0,0.00027397,7]
[384951402,1757633470251,-674.36,0.00027397,7]
[384951403,1757633470261,-400.0,0.00027397,7]
[384951404,1757633470270,-400.0,0.00027397,7]
[384951405,1757633470279,-407.37568759,0.00027397,7]
[384951406,1757633470289,-1523.77,0.00027397,7]
[384951407,1757633470298,-492.14,0.00027397,7]
[384951408,1757633470307,-3392.45,0.00027397,7]
[384951409,1757633470316,-400.0,0.00027397,7]
[384951410,1757633470325,-788.79,0.00027397,7]
[384951411,1757633470334,-400.0,0.00027397,7]
[384951412,1757633470343,-693.52,0.00027397,7]
[384951413,1757633470352,-633.62,0.00027397,7]
[384951414,1757633470362,-151.0,0.00027397,7]
[384951415,1757633470371,-400.0,0.00027397,7]
[384951416,1757633470380,-151.0,0.00027397,7]
[384951417,1757633470389,-151.0,0.00027397,7]
[384951418,1757633470398,-571.68,0.00027397,7]
[384951419,1757633470407,-151.0,0.00027397,7]
[384951420,1757633470417,-151.0,0.00027397,7]
[384951421,1757633470425,-400.0,0.00027397,2]
[384951422,1757633470434,-151.0,0.00027397,7]
[384951423,1757633470443,-151.0,0.00027397,7]
[384951424,1757633470452,-151.0,0.00027397,7]
[384951425,1757633470461,-3716.07,0.00027397,7]
[384951426,1757633470470,-400.0,0.00027397,7]
[384951427,1757633470480,-151.0,0.00027397,7]
[384951428,1757633470489,-400.0,0.00027397,7]
[384951429,1757633470500,-151.0,0.00027397,7]
[384951430,1757633470509,-2442.24,0.00027397,7]
[384951431,1757633470518,-151.0,0.00027397,7]
[384951432,1757633470529,-297.334709,0.00027397,7]
[384951433,1757633470538,-993.53,0.00027397,7]
[384951434,1757633470547,-151.0,0.00027397,7]
[384951435,1757633470557,-400.0,0.00027397,7]
[384951436,1757633470566,-155.615824,0.00027397,7]
[384951437,1757633470576,-416.12535256,0.00027397,7]
[384951438,1757633470585,-400.0,0.00027397,7]
[384951439,1757633470594,-151.0,0.00027397,7]
[384951440,1757633470604,-1414.86,0.00027397,7]
[384951441,1757633470613,-272.20712,0.00027397,7]
[384951442,1757633470622,-1644.51,0.00027397,7]
[384951443,1757633470631,-1049.17,0.00027397,7]
[384951444,1757633470640,-350.557039,0.00027397,7]
[384951445,1757633470649,-400.0,0.00027397,7]
[384951446,1757633470659,-400.0,0.00027397,7]
[384951447,1757633470668,-400.000001,0.00027397,7]
[384951448,1757633470677,-478.59356442,0.00027397,7]
[384951449,1757633470686,-151.0,0.00027397,7]
[384951450,1757633470695,-400.0,0.00027397,7]
[384951451,1757633470704,-730.7,0.00027397,7]
[384951452,1757633470714,-151.0,0.00027397,7]
[384951453,1757633470724,-151.0,0.00027397,7]
[384951454,1757633470733,-400.0,0.00027397,7]
[384951455,1757633470743,-151.0,0.00027397,7]
[384951456,1757633470753,-400.0,0.00027397,7]
[384951457,1757633470762,-400.0,0.00027397,7]
[384951458,1757633470771,-3663.04,0.00027397,7]
[384951459,1757633470780,-625.87,0.00027397,7]
[384951460,1757633470789,-444.87,0.00027397,7]
[384951461,1757633470799,-591.04,0.00027397,7]
[384951462,1757633470808,-1449.18,0.00027397,7]
[384951463,1757633470817,-3224.91,0.00027397,7]
[384951464,1757633470827,-1564.29,0.00027397,7]
[384951465,1757633470837,-1008.68,0.00027397,7]
[384951466,1757633470847,-151.0,0.00027397,7]
[384951467,1757633470857,-1052.95,0.00027397,7]
[384951468,1757633470866,-669.52,0.00027397,7]
[384951469,1757633470875,-400.0,0.00027397,7]
[384951470,1757633470884,-1219.73,0.00027397,7]
[384951471,1757633470895,-508.68385775,0.00027397,7]
[384951472,1757633470904,-400.0,0.00027397,7]
[384951473,1757633470913,-151.0,0.00027397,7]
[384951474,1757633470923,-990.64,0.00027397,7]
[384951475,1757633470932,-151.0,0.00027397,7]
[384951476,1757633470942,-151.0,0.00027397,7]
[384951477,1757633470951,-151.0,0.00027397,7]
[384951478,1757633470960,-151.0,0.00027397,7]
[384951479,1757633470969,-151.0,0.00027397,7]
[384951480,1757633470979,-436.74,0.00027397,7]
[384951481,1757633470988,-151.0,0.00027397,7]
[384951482,1757633470997,-400.0,0.00027397,7]
[384951483,1757633471007,-161.765987,0.00027397,7]
[384951484,1757633471016,-151.0,0.00027397,7]
[384951485,1757633471027,-464.91,0.00027397,7]
[384951486,1757633471036,-151.0,0.00027397,7]
[384951487,1757633471045,-151.0,0.00027397,7]
[384951488,1757633471055,-151.0,0.00027397,7]
[384951489,1757633471065,-400.0,0.00027397,7]
[384951490,1757633471075,-151.0,0.00027397,7]
[384951491,1757633471085,-151.0,0.00027397,7]
[384951492,1757633471095,-151.0,0.00027397,7]
[384951493,1757633471104,-191.73,0.00027397,7]
[384951494,1757633471115,-151.0,0.00027397,7]
[384951495,1757633471124,-151.0,0.00027397,7]
[384951496,1757633471134,-215.692892,0.00027397,7]
[384951497,1757633471143,-151.0,0.00027397,7]
[384951498,1757633471152,-151.0,0.00027397,7]
[384951499,1757633471162,-151.0,0.00027397,7]
[384951500,1757633471172,-151.0,0.00027397,7]
[384951501,1757633471182,-4257.44,0.00027397,7]
[384951502,1757633471192,-400.0,0.00027397,7]
[384951503,1757633471202,-400.0,0.00027397,7]
[384951504,1757633471211,-400.0,0.00027397,7]
[384951505,1757633471220,-1555.95,0.00027397,7]
[384951506,1757633471230,-400.0,0.00027397,7]
[384951507,1757633471239,-1593.33,0.00027397,7]
[384951508,1757633471248,-1898.89,0.00027397,7]
[384951509,1757633471258,-400.0,0.00027397,7]
[384951510,1757633471267,-482.11,0.00027397,7]
[384951511,1757633471276,-400.0,0.00027397,7]
[384951512,1757633471285,-424.44,0.00027397,7]
[384951513,1757633471295,-500.0,0.00027397,7]
[384951514,1757633471306,-419.72,0.00027397,7]
[384951515,1757633471315,-1306.76,0.00027397,7]
[384951516,1757633471324,-300.0,0.00027397,2]
[384951517,1757633471333,-237.445398,0.00027397,7]
[384951518,1757633471342,-237.445398,0.00027397,7]
[384951519,1757633471351,-237.445398,0.00027397,7]
[384951520,1757633471361,-237.445398,0.00027397,7]
[384951521,1757633471370,-237.445398,0.00027397,7]
[384951522,1757633471379,-237.445398,0.00027397,7]
[384951523,1757633471389,-237.445398,0.00027397,7]
[384951524,1757633471398,-237.445398,0.00027397,7]
[384951525,1757633471407,-237.445398,0.00027397,7]
[384951526,1757633471416,-237.445398,0.00027397,7]
[384951527,1757633471425,-237.445398,0.00027397,7]
[384951528,1757633471434,-237.445398,0.00027397,7]
[384951529,1757633471443,-237.445398,0.00027397,7]
[384951530,1757633471452,-237.445398,0.00027397,7]
[384951531,1757633471461,-237.445398,0.00027397,7]
[384951532,1757633471470,-237.445398,0.00027397,7]
[384951533,1757633471479,-1041.593966,0.00027397,7]
[384951534,1757633471488,-1041.593966,0.00027397,7]
[384951535,1757633471498,-1041.593966,0.00027397,7]
[384951536,1757633471507,-1041.593966,0.00027397,7]
[384951537,1757633471516,-1041.593966,0.00027397,7]
[384951538,1757633471525,-1041.593966,0.00027397,7]
[384951539,1757633471534,-1041.593966,0.00027397,7]
[384951540,1757633471544,-1041.593966,0.00027397,7]
[384951541,1757633471553,-1041.593966,0.00027397,7]
[384951542,1757633471562,-1041.593966,0.00027397,7]
[384951543,1757633471571,-1041.593966,0.00027397,7]
[384951544,1757633471580,-1041.593966,0.00027397,7]
[384951545,1757633471590,-1041.593966,0.00027397,7]
[384951546,1757633471599,-1041.593966,0.00027397,7]
[384951547,1757633471608,-1041.593966,0.00027397,7]
[384951548,1757633471617,-1041.593966,0.00027397,7]
[384951549,1757633471627,-1041.593966,0.00027397,7]
[384951550,1757633471635,-1041.593966,0.00027397,7]
[384951551,1757633471644,-1041.593966,0.00027397,7]
[384951552,1757633471654,-1041.593961,0.00027397,7]
[384951553,1757633471663,-151.0,0.00027397,7]
[384951554,1757633471672,-151.0,0.00027397,7]
[384951555,1757633471682,-9372.37973855,0.00027397,2]
[384951556,1757633471691,-522.73,0.000274,2]
[384951557,1757633471700,-3442.45,0.000274,7]
[384951558,1757633471709,-889.61,0.00027409,7]
[384951559,1757633471719,-157.33190827,0.00027413,2]
[384951560,1757633471728,-151.0,0.00027418,7]
[384951561,1757633471737,-151.0,0.00027418,7]
[384951562,1757633471746,-151.0,0.00027418,7]
[384951563,1757633471755,-202.9577,0.00027418,7]
[384951564,1757633471765,-151.0,0.00027418,7]
[384951565,1757633471774,-492.45,0.00027418,7]
[384951566,1757633471783,-151.0,0.00027418,7]
[384951567,1757633471792,-202.9577,0.00027418,7]
[384951568,1757633471802,-492.45,0.00027418,7]
[384951569,1757633471811,-910.733726,0.00027418,7]
[384951570,1757633471820,-151.0,0.00027418,7]
[384951571,1757633471830,-202.9577,0.00027418,7]
[384951572,1757633471839,-151.0,0.00027418,7]
[384951573,1757633471849,-492.45,0.00027418,7]
[384951574,1757633471858,-910.733726,0.00027418,7]
[384951575,1757633471867,-151.0,0.00027418,7]
[384951576,1757633471876,-492.45,0.00027418,7]
[384951577,1757633471886,-910.733726,0.00027418,7]
[384951578,1757633471896,-151.0,0.00027418,7]
[384951579,1757633471905,-910.733726,0.00027418,7]
[384951580,1757633471917,-215.914868,0.00027418,7]
[384951581,1757633471926,-151.0,0.00027418,7]
[384951582,1757633471935,-215.914868,0.00027418,7]
[384951583,1757633471945,-202.9577,0.00027418,7]
[384951584,1757633471954,-215.914868,0.00027418,7]
[384951585,1757633471965,-162.558066,0.00027418,7]
[384951586,1757633471974,-215.914868,0.00027418,7]
[384951587,1757633471983,-162.558066,0.00027418,7]
[384951588,1757633471995,-162.558066,0.00027418,7]
[384951589,1757633472005,-162.558066,0.00027418,7]
[384951590,1757633472014,-151.0,0.00027418,7]
[384951591,1757633472023,-1457.68,0.00027425,30]
[384951592,1757633472033,-151.0,0.00027425,7]
[384951593,1757633472042,-151.0,0.00027425,7]
[384951594,1757633472051,-151.0,0.00027425,7]
[384951595,1757633472060,-151.0,0.00027425,7]
[384951596,1757633472070,-160.132833,0.00027425,7]
[384951597,1757633472080,-160.132833,0.00027425,7]
[384951598,1757633472089,-310.221066,0.00027425,7]
[384951599,1757633472098,-310.221066,0.00027425,7]
[384951600,1757633472107,-310.221066,0.00027425,7]
[384951601,1757633472116,-310.221066,0.00027425,7]
[384951602,1757633472125,-160.132833,0.00027425,7]
[384951603,1757633472135,-160.132833,0.00027425,7]
[384951604,1757633472144,-151.0,0.00027425,7]
[384951605,1757633472153,-151.0,0.00027425,7]
[384951606,1757633472162,-151.0,0.00027425,7]
[384951607,1757633472172,-151.0,0.00027425,7]
[384951608,1757633472180,-151.0,0.00027425,7]
[384951609,1757633472190,-151.0,0.00027425,7]
[384951610,1757633472199,-151.0,0.00027425,7]
[384951611,1757633472208,-151.0,0.00027425,7]
[384951612,1757633472218,-350.191592,0.00027425,7]
[384951613,1757633472227,-151.0,0.00027425,7]
[384951614,1757633472236,-350.191592,0.00027425,7]
[384951615,1757633472245,-350.191592,0.00027425,7]
[384951616,1757633472254,-151.0,0.00027425,7]
[384951617,1757633472263,-350.191592,0.00027425,7]
[384951618,1757633472272,-203.098746,0.00027425,7]
[384951619,1757633472281,-189.363818,0.00027425,7]
[384951620,1757633472290,-203.098746,0.00027425,7]
[384951621,1757633472299,-189.363818,0.00027425,7]
[384951622,1757633472308,-203.098746,0.00027425,7]
[384951623,1757633472318,-189.363818,0.00027425,7]
[384951624,1757633472327,-203.098746,0.00027425,7]
[384951625,1757633472336,-189.363818,0.00027425,7]
[384951626,1757633472345,-240.305524,0.00027425,7]
[384951627,1757633472354,-240.305524,0.00027425,7]
[384951628,1757633472363,-240.305524,0.00027425,7]
[384951629,1757633472372,-240.305524,0.00027425,7]
[384951630,1757633472382,-151.0,0.00027425,7]
[384951631,1757633472392,-151.0,0.00027425,7]
[384951632,1757633472404,-151.0,0.00027425,7]
[384951633,1757633472414,-948.486537,0.00027425,7]
[384951634,1757633472423,-948.486537,0.00027425,7]
[384951635,1757633472434,-948.486537,0.00027425,7]
[384951636,1757633472443,-948.486537,0.00027425,7]
[384951637,1757633472453,-235.508121,0.00027425,7]
[384951638,1757633472464,-235.508121,0.00027425,7]
[384951639,1757633472475,-235.508121,0.00027425,7]
[384951640,1757633472484,-235.508123,0.00027425,7]
[384951641,1757633472494,-172.215087,0.00027425,7]
[384951642,1757633472502,-172.215087,0.00027425,7]
[384951643,1757633472512,-151.0,0.00027425,7]
[384951644,1757633472521,-172.215087,0.00027425,7]
[384951645,1757633472530,-151.0,0.00027425,7]
[384951646,1757633472539,-151.0,0.00027425,7]
[384951647,1757633472548,-172.2150917,0.00027425,7]
[384951648,1757633472558,-151.0,0.00027425,7]
[384951649,1757633472568,-151.0,0.00027425,7]
[384951650,1757633472578,-198.48,0.00027425,7]
[384951651,1757633472588,-171.897832,0.00027425,7]
[384951652,1757633472603,-514.683742,0.00027425,7]
[384951653,1757633472614,-514.683742,0.00027425,7]
[384951654,1757633472624,-151.0,0.00027425,7]
[384951655,1757633472633,-514.683742,0.00027425,7]
[384951656,1757633472643,-151.0,0.00027425,7]
[384951657,1757633472652,-514.683739,0.00027425,7]
[384951658,1757633472662,-395.230776,0.00027425,7]
[384951659,1757633472671,-395.230776,0.00027425,7]
[384951660,1757633472680,-395.230776,0.00027425,7]
[384951661,1757633472689,-395.230775,0.00027425,7]
[384951662,1757633472699,-151.0,0.00027425,7]
[384951663,1757633472709,-151.0,0.00027425,7]
[384951664,1757633472718,-151.0,0.00027425,7]
[384951665,1757633472728,-151.0,0.00027425,7]
[384951666,1757633472738,-501.32185,0.00027425,7]
[384951667,1757633472747,-151.0,0.00027425,7]
[384951668,1757633472756,-501.32185,0.00027425,7]
[384951669,1757633472766,-151.0,0.00027425,7]
[384951670,1757633472775,-151.0,0.00027425,7]
[384951671,1757633472784,-151.0,0.00027425,7]
[384951672,1757633472794,-151.0,0.00027425,7]
[384951673,1757633472803,-151.0,0.00027425,7]
[384951674,1757633472812,-501.32185,0.00027425,7]
[384951675,1757633472822,-151.0,0.00027425,7]
[384951676,1757633472832,-501.321859,0.00027425,7]
[384951677,1757633472841,-174.916608,0.00027425,7]
[384951678,1757633472851,-267.031694,0.00027425,7]
[384951679,1757633472861,-151.0,0.00027425,7]
[384951680,1757633472870,-267.031694,0.00027425,7]
[384951681,1757633472879,-267.031694,0.00027425,7]
[384951682,1757633472889,-237.445398,0.00027425,7]
[384951683,1757633472898,-267.031696,0.00027425,7]
[384951684,1757633472908,-151.0,0.00027425,7]
[384951685,1757633472917,-237.445398,0.00027425,7]
[384951686,1757633472926,-151.0,0.00027425,7]
[384951687,1757633472936,-237.445398,0.00027425,7]
[384951688,1757633472945,-237.445396,0.00027425,7]
[384951689,1757633472955,-151.0,0.00027425,7]
[384951690,1757633472964,-151.0,0.00027425,7]
[384951691,1757633472973,-151.0,0.00027425,7]
[384951692,1757633472982,-151.0,0.00027425,7]
[384951693,1757633472992,-151.0,0.00027425,7]
[384951694,1757633473001,-151.0,0.00027425,7]
[384951695,1757633473011,-214.042975,0.00027425,7]
[384951696,1757633473020,-214.042975,0.00027425,7]
[384951697,1757633473029,-214.042975,0.00027425,7]
[384951698,1757633473038,-214.042979,0.00027425,7]
[384951699,1757633473048,-150.01,0.00027491,2]
[384951700,1757633473059,-11542.0,0.00027507,2]
[384951701,1757633473071,-736.0,0.00027507,2]
[384951702,1757633473081,-167.43,0.00027507,2]
[384951703,1757633473091,-168.0,0.00027509,2]
[384951704,1757633473100,-151.0,0.00027532,2]
[384951705,1757633473110,-285.922685,0.00027533,7]
[384951706,1757633473121,-285.922685,0.00027533,7]
[384951707,1757633473132,-285.922685,0.00027533,7]
[384951708,1757633473141,-285.922685,0.00027533,7]
[384951709,1757633473151,-161.54231,0.00027533,7]
[384951710,1757633473161,-161.54231,0.00027533,7]
[384951711,1757633473170,-161.54231,0.00027533,7]
[384951712,1757633473180,-161.54231,0.00027533,7]
[384951713,1757633473190,-209.416581,0.00027533,7]
[384951714,1757633473199,-209.416581,0.00027533,7]
[384951715,1757633473209,-209.416581,0.00027533,7]
[384951716,1757633473219,-209.416581,0.00027533,7]
[384951717,1757633473228,-151.0,0.00027533,7]
[384951718,1757633473238,-244.193836,0.00027533,7]
[384951719,1757633473248,-151.0,0.00027533,7]
[384951720,1757633473258,-151.0,0.00027533,7]
[384951721,1757633473270,-151.0,0.00027533,7]
[384951722,1757633473279,-9372.37973855,0.00027563,2]
[384951723,1757633473289,-1928.0,0.00027571,5]
[384951724,1757633473299,-157.33190827,0.00027571,2]
[384951725,1757633473309,-267.46074303,0.00027597,2]
[384951726,1757633473318,-500.0,0.0002764,7]
[384951727,1757633473328,-500.0,0.0002764,7]
[384951728,1757633473338,-150.0,0.00027643,2]
[384951729,1757633473348,-613.49,0.00027643,7]
[384951730,1757633473357,-648.34,0.00027643,7]
[384951731,1757633473367,-322.81618298,0.00027645,2]
[384951732,1757633473377,-411.43239007,0.00027647,2]
[384951733,1757633473388,-18874.96559729,0.00027647,2]
[384951734,1757633473397,-500.04859716,0.00027649,2]
[384951735,1757633473407,-5321.46,0.0002765,2]
[384951736,1757633473417,-588.66480425,0.00027651,2]
[384951737,1757633473427,-168.0,0.00027652,2]
[384951738,1757633473436,-677.28101135,0.00027653,2]
[384951739,1757633473446,-765.89721844,0.00027655,2]
[384951740,1757633473456,-854.51342553,0.00027657,2]
[384951741,1757633473467,-943.12963262,0.00027659,2]
[384951742,1757633473476,-2362.21110095,0.00027659,2]
[384951743,1757633473486,-1031.74583971,0.00027661,2]
[384951744,1757633473500,-500.0,0.00027669,7]
[384951745,1757633473510,-500.0,0.00027669,2]
[384951746,1757633473520,-358.27839776,0.00027669,7]
[384951747,1757633473530,-500.0,0.00027669,7]
[384951748,1757633473539,-300.0,0.0002767,10]
[384951749,1757633473550,-870.09887548,0.0002767,2]
[384951750,1757633473560,-500.0,0.0002767,7]
[384951751,1757633473571,-500.0,0.0002767,7]
[384951752,1757633473580,-500.0,0.0002767,7]
[384951753,1757633473590,-500.0,0.0002767,7]
[384951754,1757633473600,-500.0,0.0002767,7]
[384951755,1757633473610,-500.0,0.0002767,7]
[384951756,1757633473620,-500.0,0.0002767,7]
[384951757,1757633473628,-500.0,0.0002767,7]
[384951758,1757633473638,-500.0,0.0002767,2]
[384951759,1757633473648,-500.0,0.0002767,2]
[384951760,1757633473658,-500.0,0.0002767,2]
[384951761,1757633473668,-500.0,0.0002767,2]
[384951762,1757633473677,-889.61,0.0002767,7]
[384951763,1757633473687,-889.61,0.0002767,7]
[384951764,1757633473697,-889.61,0.0002767,7]
[384951765,1757633473706,-889.61,0.0002767,7]
[384951766,1757633473716,-613.49,0.0002767,7]
[384951767,1757633473725,-613.49,0.0002767,7]
[384951768,1757633473735,-613.49,0.0002767,7]
[384951769,1757633473745,-613.49,0.0002767,7]
[384951770,1757633473754,-648.34,0.0002767,7]
[384951771,1757633473764,-648.34,0.0002767,7]
[384951772,1757633473774,-648.34,0.0002767,7]
[384951773,1757633473783,-648.34,0.0002767,7]
[384951774,1757633473793,-232.67,0.0002767,7]
[384951775,1757633473803,-500.0,0.0002767,7]
[384951776,1757633473812,-500.0,0.0002767,7]
[384951777,1757633473822,-632.93932365,0.0002767,7]
[384951778,1757633473832,-5305.9001272,0.00027671,2]
[384951779,1757633473841,-500.0,0.00027671,7]
[384951780,1757633473851,-500.0,0.00027671,7]
[384951781,1757633473861,-500.0,0.00027671,7]
[384951782,1757633473871,-150.0,0.00027671,7]
[384951783,1757633473881,-500.0,0.00027671,7]
[384951784,1757633473891,-150.0,0.00027671,7]
[384951785,1757633474108,-500.0,0.00027671,7]
[384951786,1757633474119,-150.0,0.00027671,7]
[384951787,1757633474128,-150.0,0.00027671,2]
[384951788,1757633474139,-437.0,0.00027671,7]
[384951789,1757633474149,-500.0,0.00027671,2]
[384951790,1757633474159,-150.0,0.00027671,7]
[384951791,1757633474169,-150.0,0.00027671,7]
[384951792,1757633474179,-150.0,0.00027671,7]
[384951793,1757633474189,-500.0,0.00027671,7]
[384951794,1757633474200,-3072.0,0.00027671,7]
[384951795,1757633474210,-500.0,0.00027671,7]
[384951796,1757633474219,-500.0,0.00027671,7]
[384951797,1757633474229,-150.0,0.00027671,7]
[384951798,1757633474239,-500.0,0.00027671,7]
[384951799,1757633474250,-500.0,0.00027671,7]
[384951800,1757633474259,-500.0,0.00027671,7]
[384951801,1757633474270,-150.0,0.00027671,2]
[384951802,1757633474279,-150.0,0.00027671,7]
[384951803,1757633474290,-500.0,0.00027671,7]
[384951804,1757633474299,-500.0,0.00027671,7]
[384951805,1757633474309,-500.0,0.00027671,7]
[384951806,1757633474319,-150.0,0.00027671,7]
[384951807,1757633474329,-500.0,0.00027671,7]
[384951808,1757633474339,-150.0,0.00027671,7]
[384951809,1757633474348,-150.0,0.00027671,7]
[384951810,1757633474358,-500.0,0.00027671,7]
[384951811,1757633474368,-150.0,0.00027671,7]
[384951812,1757633474378,-150.0,0.00027671,7]
[384951813,1757633474388,-150.0,0.00027671,7]
[384951814,1757633474398,-158.254711,0.00027671,7]